[Event "Live Chess"]
[Site "Chess.com"]
[Date "2023.05.21"]
[Round "-"]
[White "Dhaydon19"]
[Black "Biranidun"]
[Result "1/2-1/2"]
[WhiteElo "2689"]
[BlackElo "2524"]
[TimeControl "300"]
[EndTime "8:04:41 PDT"]
[Termination "Game drawn by repetition"]

1. d4 {[%clk 0:04:57.6]} 1... Nf6 {[%clk 0:04:57.6]} 2. Nf3 {[%clk 0:04:56.9]}
2... g6 {[%clk 0:04:57.2]} 3. g3 {[%clk 0:04:56.2]} 3... Bg7 {[%clk 0:04:56.8]}
4. Bg2 {[%clk 0:04:55.9]} 4... O-O {[%clk 0:04:56.7]} 5. O-O {[%clk 0:04:55.2]}
5... d5 {[%clk 0:04:56.6]} 6. c3 {[%clk 0:04:54.5]} 6... c6 {[%clk 0:04:48.2]}
7. Re1 {[%clk 0:04:53.4]} 7... Bf5 {[%clk 0:04:46.3]} 8. Nbd2 {[%clk 0:04:52.6]}
8... Ne4 {[%clk 0:04:45.2]} 9. Nh4 {[%clk 0:04:51.8]} 9... Nxd2 {[%clk
0:04:42.1]} 10. Nxf5 {[%clk 0:04:51]} 10... Nc4 {[%clk 0:04:39.3]} 11. Nxg7
{[%clk 0:04:48.9]} 11... Kxg7 {[%clk 0:04:39.2]} 12. Qc2 {[%clk 0:04:46.7]}
12... f5 {[%clk 0:04:35.4]} 13. Bf4 {[%clk 0:04:44.1]} 13... Nd7 {[%clk
0:04:33.4]} 14. b3 {[%clk 0:04:42.6]} 14... Nd6 {[%clk 0:04:32.7]} 15. Qd2
{[%clk 0:04:41.3]} 15... Kg8 {[%clk 0:04:28.8]} 16. f3 {[%clk 0:04:40.1]} 16...
Nf6 {[%clk 0:04:20]} 17. Rac1 {[%clk 0:04:38.3]} 17... Qd7 {[%clk 0:04:19]} 18.
c4 {[%clk 0:04:36.2]} 18... Qe6 {[%clk 0:04:17.9]} 19. c5 {[%clk 0:04:33.9]}
19... Nf7 {[%clk 0:04:16.3]} 20. Be3 {[%clk 0:04:23.5]} 20... Rae8 {[%clk
0:04:14]} 21. Bf2 {[%clk 0:04:22.2]} 21... Qd7 {[%clk 0:04:13.3]} 22. Qa5 {[%clk
0:04:20.7]} 22... a6 {[%clk 0:04:11.2]} 23. e3 {[%clk 0:04:19.7]} 23... e5
{[%clk 0:04:10.4]} 24. a4 {[%clk 0:04:18.1]} 24... e4 {[%clk 0:04:09.1]} 25. f4
{[%clk 0:04:15.7]} 25... h6 {[%clk 0:04:07.6]} 26. b4 {[%clk 0:04:12.2]} 26...
Ra8 {[%clk 0:04:05.4]} 27. Bf1 {[%clk 0:04:06.2]} 27... g5 {[%clk 0:04:03.5]}
28. Be2 {[%clk 0:04:03]} 28... Kh7 {[%clk 0:04:02.4]} 29. Kh1 {[%clk 0:04:01.7]}
29... Rg8 {[%clk 0:04:01.6]} 30. Qb6 {[%clk 0:04:00.1]} 30... Qc8 {[%clk
0:03:59.7]} 31. Qa5 {[%clk 0:03:58.3]} 31... h5 {[%clk 0:03:56.7]} 32. Rg1
{[%clk 0:03:53.6]} 32... Ng4 {[%clk 0:03:49.7]} 33. Rg2 {[%clk 0:03:42.8]} 33...
Rg6 {[%clk 0:03:45]} 34. Rcg1 {[%clk 0:03:35.6]} 34... Nf6 {[%clk 0:03:30.6]}
35. Qb6 {[%clk 0:03:24.4]} 35... Kh6 {[%clk 0:03:26]} 36. fxg5+ {[%clk
0:03:17.5]} 36... Nxg5 {[%clk 0:03:24.8]} 37. Rf1 {[%clk 0:03:13.4]} 37... Nh3
{[%clk 0:03:21.4]} 38. Bg1 {[%clk 0:03:10.7]} 38... Qd7 {[%clk 0:03:09]} 39. b5
{[%clk 0:03:08]} 39... axb5 {[%clk 0:03:08.1]} 40. axb5 {[%clk 0:03:07.9]} 40...
h4 {[%clk 0:03:02.8]} 41. bxc6 {[%clk 0:03:03.5]} 41... bxc6 {[%clk 0:03:02.7]}
42. Bf2 {[%clk 0:02:44.3]} 42... Ra2 {[%clk 0:02:58.3]} 43. Bd1 {[%clk
0:02:41.6]} 43... Nxf2+ {[%clk 0:02:52.6]} 44. Rgxf2 {[%clk 0:02:38.3]} 44...
Rxf2 {[%clk 0:02:52]} 45. Rxf2 {[%clk 0:02:37.9]} 45... hxg3 {[%clk 0:02:51.9]}
46. hxg3 {[%clk 0:02:37.2]} 46... Rxg3 {[%clk 0:02:50.8]} 47. Rh2+ {[%clk
0:02:36]} 47... Kg5 {[%clk 0:02:47.6]} 48. Qb8 {[%clk 0:02:34.6]} 48... Rxe3
{[%clk 0:02:38.2]} 49. Rg2+ {[%clk 0:02:33.2]} 49... Ng4 {[%clk 0:02:36.8]} 50.
Qg8+ {[%clk 0:02:28.8]} 50... Kf6 {[%clk 0:02:29.3]} 51. Bxg4 {[%clk 0:02:24.1]}
51... Re1+ {[%clk 0:02:02.7]} 52. Kh2 {[%clk 0:02:18.2]} 52... Qc7+ {[%clk
0:02:01.9]} 53. Rg3 {[%clk 0:02:16.9]} 53... fxg4 {[%clk 0:01:55]} 54. Qh8+
{[%clk 0:02:11.8]} 54... Qg7 {[%clk 0:01:49.6]} 55. Qd8+ {[%clk 0:02:09.9]}
55... Qe7 {[%clk 0:01:18.8]} 56. Qh8+ {[%clk 0:02:05.9]} 56... Qg7 {[%clk
0:00:51]} 57. Qd8+ {[%clk 0:02:03.6]} 57... Qe7 {[%clk 0:00:49.9]} 58. Qh8+
{[%clk 0:01:59.7]} 58... Qg7 {[%clk 0:00:43.6]} 1/2-1/2

[Event "Live Chess"]
[Site "Chess.com"]
[Date "2023.05.21"]
[Round "-"]
[White "shohrehbayat"]
[Black "peleus16"]
[Result "1-0"]
[WhiteElo "2045"]
[BlackElo "1670"]
[TimeControl "300"]
[EndTime "8:04:42 PDT"]
[Termination "shohrehbayat won on time"]

1. e4 {[%clk 0:04:59.4]} 1... d5 {[%clk 0:04:57.3]} 2. exd5 {[%clk 0:04:57.2]}
2... Qxd5 {[%clk 0:04:55.7]} 3. Nc3 {[%clk 0:04:55.8]} 3... Qa5 {[%clk
0:04:53.6]} 4. Nf3 {[%clk 0:04:54.5]} 4... Nf6 {[%clk 0:04:49.9]} 5. Be2 {[%clk
0:04:54]} 5... Bf5 {[%clk 0:04:46.5]} 6. d3 {[%clk 0:04:52.2]} 6... e6 {[%clk
0:04:42]} 7. Be3 {[%clk 0:04:51.7]} 7... Be7 {[%clk 0:04:33.5]} 8. O-O {[%clk
0:04:50.1]} 8... O-O {[%clk 0:04:30.5]} 9. Nd4 {[%clk 0:04:49.2]} 9... Bg6
{[%clk 0:04:20.9]} 10. f4 {[%clk 0:04:48.1]} 10... c5 {[%clk 0:04:01.4]} 11. Nb3
{[%clk 0:04:43.4]} 11... Qc7 {[%clk 0:03:53.4]} 12. Bf3 {[%clk 0:04:42]} 12...
a6 {[%clk 0:03:31.4]} 13. Ne4 {[%clk 0:04:38]} 13... Nxe4 {[%clk 0:03:10.2]} 14.
dxe4 {[%clk 0:04:35.2]} 14... Rd8 {[%clk 0:03:05.5]} 15. Qe2 {[%clk 0:04:32.6]}
15... Nd7 {[%clk 0:02:58.9]} 16. f5 {[%clk 0:04:30.9]} 16... exf5 {[%clk
0:02:53.6]} 17. exf5 {[%clk 0:04:30.8]} 17... Bxf5 {[%clk 0:02:47.3]} 18. Bxb7
{[%clk 0:04:29.5]} 18... Qxb7 {[%clk 0:02:32.9]} 19. Rxf5 {[%clk 0:04:28.2]}
19... Nf6 {[%clk 0:02:27.6]} 20. Raf1 {[%clk 0:04:25]} 20... Rd5 {[%clk
0:02:09.3]} 21. Bxc5 {[%clk 0:04:00.7]} 21... Bxc5+ {[%clk 0:01:47.9]} 22. Nxc5
{[%clk 0:03:58.9]} 22... Qb6 {[%clk 0:01:36.5]} 23. Rxd5 {[%clk 0:03:42.6]}
23... Nxd5 {[%clk 0:01:31]} 24. Qc4 {[%clk 0:03:31.4]} 24... Nf6 {[%clk
0:01:21.4]} 25. Kh1 {[%clk 0:03:25.8]} 25... Rc8 {[%clk 0:01:15.3]} 26. b4
{[%clk 0:03:23.4]} 26... a5 {[%clk 0:01:02.6]} 27. c3 {[%clk 0:03:22.1]} 27...
axb4 {[%clk 0:00:57.2]} 28. cxb4 {[%clk 0:03:22]} 28... h6 {[%clk 0:00:36.3]}
29. a4 {[%clk 0:03:03.6]} 29... Qd6 {[%clk 0:00:24.4]} 30. Qf4 {[%clk
0:02:50.4]} 30... Qxf4 {[%clk 0:00:20.7]} 31. Rxf4 {[%clk 0:02:50.3]} 31... Re8
{[%clk 0:00:13.5]} 32. Kg1 {[%clk 0:02:47.1]} 32... Re1+ {[%clk 0:00:10.9]} 33.
Kf2 {[%clk 0:02:46]} 33... Rb1 {[%clk 0:00:08.9]} 34. b5 {[%clk 0:02:41.3]}
34... Rb2+ {[%clk 0:00:06.7]} 35. Kf3 {[%clk 0:02:35.4]} 35... Nd5 {[%clk
0:00:04.4]} 36. Rd4 {[%clk 0:02:32.7]} 1-0

[Event "Live Chess"]
[Site "Chess.com"]
[Date "2023.05.21"]
[Round "-"]
[White "Ed_Knox"]
[Black "MarkLim1"]
[Result "0-1"]
[WhiteElo "1471"]
[BlackElo "1727"]
[TimeControl "300"]
[EndTime "8:04:44 PDT"]
[Termination "MarkLim1 won by checkmate"]

1. d4 {[%clk 0:04:57.3]} 1... d5 {[%clk 0:04:58.4]} 2. Bf4 {[%clk 0:04:53.9]}
2... c6 {[%clk 0:04:57.6]} 3. e3 {[%clk 0:04:53.1]} 3... Nf6 {[%clk 0:04:55.8]}
4. Nf3 {[%clk 0:04:52.3]} 4... Bg4 {[%clk 0:04:54.9]} 5. Be2 {[%clk 0:04:50.9]}
5... e6 {[%clk 0:04:54]} 6. O-O {[%clk 0:04:49.9]} 6... Bd6 {[%clk 0:04:53.4]}
7. Bxd6 {[%clk 0:04:46.3]} 7... Qxd6 {[%clk 0:04:52.6]} 8. h3 {[%clk 0:04:44.1]}
8... Bh5 {[%clk 0:04:51.4]} 9. Nbd2 {[%clk 0:04:40.4]} 9... O-O {[%clk
0:04:50.1]} 10. c3 {[%clk 0:04:35.1]} 10... c5 {[%clk 0:04:47.5]} 11. Bd3 {[%clk
0:04:33.2]} 11... Nc6 {[%clk 0:04:45.5]} 12. g4 {[%clk 0:04:30.3]} 12... Bg6
{[%clk 0:04:44]} 13. Bxg6 {[%clk 0:04:29]} 13... hxg6 {[%clk 0:04:42.8]} 14.
dxc5 {[%clk 0:04:14.5]} 14... Qxc5 {[%clk 0:04:41.5]} 15. Nd4 {[%clk 0:04:04.5]}
15... b5 {[%clk 0:04:37.4]} 16. N2b3 {[%clk 0:03:48.2]} 16... Qb6 {[%clk
0:04:35.3]} 17. Nxc6 {[%clk 0:03:44.4]} 17... Qxc6 {[%clk 0:04:34.3]} 18. Nd4
{[%clk 0:03:43.7]} 18... Qb6 {[%clk 0:04:32.3]} 19. Qe2 {[%clk 0:03:38.6]} 19...
Rab8 {[%clk 0:04:26]} 20. f3 {[%clk 0:03:36.9]} 20... Rfc8 {[%clk 0:04:22.3]}
21. h4 {[%clk 0:03:33.3]} 21... b4 {[%clk 0:04:20.4]} 22. cxb4 {[%clk
0:03:26.1]} 22... Qxb4 {[%clk 0:04:16.9]} 23. Rf2 {[%clk 0:03:04.6]} 23... Ne8
{[%clk 0:04:15.1]} 24. h5 {[%clk 0:02:59.9]} 24... gxh5 {[%clk 0:04:13.2]} 25.
gxh5 {[%clk 0:02:54.2]} 25... Nd6 {[%clk 0:04:12.2]} 26. h6 {[%clk 0:02:47.4]}
26... g6 {[%clk 0:04:09.8]} 27. h7+ {[%clk 0:02:34.7]} 27... Kxh7 {[%clk
0:04:07.2]} 28. Rh2+ {[%clk 0:02:31.5]} 28... Kg7 {[%clk 0:04:05.1]} 29. Rh4
{[%clk 0:02:19.4]} 29... Qxb2 {[%clk 0:03:57.8]} 30. Qxb2 {[%clk 0:01:40.7]}
30... Rxb2 {[%clk 0:03:55.9]} 31. Rh2 {[%clk 0:01:31.5]} 31... Rxh2 {[%clk
0:03:52.8]} 32. Kxh2 {[%clk 0:01:30.6]} 32... Rc3 {[%clk 0:03:47.9]} 33. Re1
{[%clk 0:01:23.5]} 33... Kf6 {[%clk 0:03:40]} 34. f4 {[%clk 0:01:14.9]} 34...
Nf5 {[%clk 0:03:27.5]} 35. Nxf5 {[%clk 0:01:00.7]} 35... Kxf5 {[%clk 0:03:26.1]}
36. Re2 {[%clk 0:00:57.3]} 36... Ke4 {[%clk 0:03:24.8]} 37. Rb2 {[%clk
0:00:50.6]} 37... Rxe3 {[%clk 0:03:21.7]} 38. Rb7 {[%clk 0:00:45.2]} 38... Ra3
{[%clk 0:03:18.7]} 39. Rb2 {[%clk 0:00:38]} 39... d4 {[%clk 0:03:14.6]} 40. Rf2
{[%clk 0:00:32.8]} 40... d3 {[%clk 0:03:12.2]} 41. Rd2 {[%clk 0:00:31.1]} 41...
Ke3 {[%clk 0:03:10.6]} 42. f5 {[%clk 0:00:28.8]} 42... gxf5 {[%clk 0:03:09.3]}
43. Rd1 {[%clk 0:00:24.4]} 43... Rxa2+ {[%clk 0:03:06]} 44. Kh1 {[%clk
0:00:20.5]} 44... f4 {[%clk 0:03:03.1]} 45. Rf1 {[%clk 0:00:17.9]} 45... f3
{[%clk 0:03:00.7]} 46. Rg1 {[%clk 0:00:13.5]} 46... f2 {[%clk 0:02:56.1]} 47.
Rg3+ {[%clk 0:00:12.6]} 47... Ke2 {[%clk 0:02:55.2]} 48. Rg2 {[%clk 0:00:11.1]}
48... d2 {[%clk 0:02:47.7]} 49. Rxf2+ {[%clk 0:00:09.4]} 49... Kxf2 {[%clk
0:02:45.5]} 50. Kh2 {[%clk 0:00:08.6]} 50... d1=Q {[%clk 0:02:33.3]} 51. Kh3
{[%clk 0:00:07.2]} 51... Qh5# {[%clk 0:02:31.7]} 0-1

[Event "Live Chess"]
[Site "Chess.com"]
[Date "2023.05.21"]
[Round "-"]
[White "mammamiatwo"]
[Black "MartinWalker4"]
[Result "0-1"]
[WhiteElo "1372"]
[BlackElo "2082"]
[TimeControl "300"]
[EndTime "8:04:44 PDT"]
[Termination "MartinWalker4 won by resignation"]

1. e4 {[%clk 0:04:58.5]} 1... Nf6 {[%clk 0:04:57.8]} 2. Qf3 {[%clk 0:04:57.1]}
2... Nc6 {[%clk 0:04:46.7]} 3. c3 {[%clk 0:04:55.7]} 3... e5 {[%clk 0:04:44.3]}
4. Bc4 {[%clk 0:04:53.1]} 4... Bc5 {[%clk 0:04:35.5]} 5. h3 {[%clk 0:04:52]}
5... O-O {[%clk 0:04:32.3]} 6. Bb3 {[%clk 0:04:50.9]} 6... d5 {[%clk 0:04:19.9]}
7. exd5 {[%clk 0:04:45]} 7... e4 {[%clk 0:04:18.1]} 8. Qg3 {[%clk 0:04:41.5]}
8... Nxd5 {[%clk 0:04:15.2]} 9. Ne2 {[%clk 0:04:35.8]} 9... Be6 {[%clk
0:03:59.9]} 10. d4 {[%clk 0:04:29.8]} 10... exd3 {[%clk 0:03:57.6]} 11. Qxd3
{[%clk 0:04:28.5]} 11... Ne5 {[%clk 0:03:25.5]} 12. Qe4 {[%clk 0:04:12.6]} 12...
Ng6 {[%clk 0:03:23.7]} 13. O-O {[%clk 0:04:08.7]} 13... Re8 {[%clk 0:03:21.2]}
14. Qf3 {[%clk 0:04:06.6]} 14... c6 {[%clk 0:02:59.1]} 15. Ng3 {[%clk
0:03:45.8]} 15... Qc7 {[%clk 0:02:43.7]} 16. Bc2 {[%clk 0:03:16.6]} 16... Rad8
{[%clk 0:02:38.1]} 17. b4 {[%clk 0:03:11]} 17... Bb6 {[%clk 0:02:34.7]} 18. Nd2
{[%clk 0:02:47.5]} 18... Nxc3 {[%clk 0:02:31]} 19. Qxc3 {[%clk 0:02:43.5]} 19...
Bd4 {[%clk 0:02:29.8]} 20. Qb3 {[%clk 0:02:27.5]} 20... Bxb3 {[%clk 0:02:27.4]}
0-1

[Event "Live Chess"]
[Site "Chess.com"]
[Date "2023.05.21"]
[Round "-"]
[White "educatedlad"]
[Black "SupremeTactician"]
[Result "0-1"]
[WhiteElo "1625"]
[BlackElo "2210"]
[TimeControl "300"]
[EndTime "8:05:09 PDT"]
[Termination "SupremeTactician won by resignation"]

1. e4 {[%clk 0:04:59.4]} 1... e5 {[%clk 0:04:59.3]} 2. Nf3 {[%clk 0:04:58.8]}
2... Nc6 {[%clk 0:04:58.7]} 3. c3 {[%clk 0:04:58.3]} 3... d5 {[%clk 0:04:57.5]}
4. d4 {[%clk 0:04:56.9]} 4... dxe4 {[%clk 0:04:56.7]} 5. Nxe5 {[%clk 0:04:55]}
5... Nxe5 {[%clk 0:04:56.4]} 6. dxe5 {[%clk 0:04:49.8]} 6... Qxd1+ {[%clk
0:04:56.3]} 7. Kxd1 {[%clk 0:04:49]} 7... Bg4+ {[%clk 0:04:56.1]} 8. Be2 {[%clk
0:04:47.4]} 8... O-O-O+ {[%clk 0:04:55.7]} 9. Nd2 {[%clk 0:04:45.3]} 9... Bf5
{[%clk 0:04:53.4]} 10. g4 {[%clk 0:04:42.3]} 10... Bg6 {[%clk 0:04:52.5]} 11. h4
{[%clk 0:04:41.4]} 11... h5 {[%clk 0:04:50.8]} 12. gxh5 {[%clk 0:04:39.2]} 12...
Bf5 {[%clk 0:04:49.8]} 13. Ke1 {[%clk 0:04:24.8]} 13... Bc5 {[%clk 0:04:45.9]}
14. Nc4 {[%clk 0:04:22.7]} 14... Ne7 {[%clk 0:04:43.5]} 15. Be3 {[%clk
0:04:20.2]} 15... Bxe3 {[%clk 0:04:42.5]} 16. fxe3 {[%clk 0:04:20.1]} 16... Nc6
{[%clk 0:04:41.6]} 17. Rf1 {[%clk 0:04:17.1]} 17... g6 {[%clk 0:04:41]} 18. hxg6
{[%clk 0:04:15.1]} 18... Bxg6 {[%clk 0:04:38.2]} 19. Bg4+ {[%clk 0:04:11.4]}
19... Kb8 {[%clk 0:04:36.8]} 20. e6 {[%clk 0:04:10.3]} 20... fxe6 {[%clk
0:04:35.1]} 21. Bxe6 {[%clk 0:04:09.3]} 21... Rxh4 {[%clk 0:04:33.1]} 22. Ke2
{[%clk 0:03:58]} 22... Bh5+ {[%clk 0:04:29.7]} 23. Kf2 {[%clk 0:03:50.7]} 23...
Rh2+ {[%clk 0:04:26.5]} 24. Kg3 {[%clk 0:03:49.4]} 24... Re2 {[%clk 0:04:21.9]}
25. Rad1 {[%clk 0:03:45.3]} 25... Re8 {[%clk 0:04:08.5]} 26. Bg4 {[%clk
0:03:39.2]} 26... Rg8 {[%clk 0:04:06.4]} 27. Rf4 {[%clk 0:03:35.8]} 27... b5
{[%clk 0:03:50.6]} 28. Kh3 {[%clk 0:03:30.9]} 28... Bxg4+ {[%clk 0:03:48.9]} 29.
Rxg4 {[%clk 0:03:29.2]} 29... Rxg4 {[%clk 0:03:48.1]} 30. Kxg4 {[%clk
0:03:28.4]} 30... bxc4 {[%clk 0:03:47.6]} 31. Kf4 {[%clk 0:03:25]} 31... Rxb2
{[%clk 0:03:46.9]} 32. Kxe4 {[%clk 0:03:24.1]} 32... Rxa2 {[%clk 0:03:46.3]} 33.
Rb1+ {[%clk 0:03:22.9]} 33... Kc8 {[%clk 0:03:45.3]} 34. Rd1 {[%clk 0:03:22.3]}
34... Rc2 {[%clk 0:03:42.5]} 35. Kd5 {[%clk 0:03:21.4]} 35... Na5 {[%clk
0:03:39.2]} 36. Ra1 {[%clk 0:03:18.4]} 36... Nb3 {[%clk 0:03:31.3]} 37. Rxa7
{[%clk 0:03:17]} 37... Rxc3 {[%clk 0:03:29.7]} 38. Ra8+ {[%clk 0:03:15.8]} 38...
Kb7 {[%clk 0:03:29]} 39. Ra4 {[%clk 0:03:12.4]} 39... Rxe3 {[%clk 0:03:26.2]}
40. Rxc4 {[%clk 0:03:08.8]} 40... c6+ {[%clk 0:03:19.8]} 41. Kd6 {[%clk
0:03:06.8]} 41... Rd3+ {[%clk 0:03:17.7]} 42. Ke5 {[%clk 0:03:04.9]} 42... Rd5+
{[%clk 0:03:16.4]} 43. Kf6 {[%clk 0:03:02.7]} 43... Kb6 {[%clk 0:03:15.3]} 44.
Rb4+ {[%clk 0:03:00.6]} 44... Rb5 {[%clk 0:03:13.3]} 45. Rc4 {[%clk 0:03:00.1]}
45... Na5 {[%clk 0:03:11.5]} 46. Rd4 {[%clk 0:02:56.5]} 46... Rd5 {[%clk
0:03:08.8]} 47. Rb4+ {[%clk 0:02:54.8]} 47... Kc5 {[%clk 0:03:08.1]} 48. Ra4
{[%clk 0:02:53.4]} 48... Kb5 {[%clk 0:03:07.2]} 49. Re4 {[%clk 0:02:50.3]} 49...
c5 {[%clk 0:03:06.3]} 50. Ke6 {[%clk 0:02:48.7]} 50... Rd2 {[%clk 0:03:05.4]}
51. Re5 {[%clk 0:02:45.9]} 51... Kb4 {[%clk 0:03:02.2]} 52. Re4+ {[%clk
0:02:40.9]} 52... c4 {[%clk 0:03:01.5]} 53. Re5 {[%clk 0:02:40.6]} 53... c3
{[%clk 0:03:00.1]} 54. Kf6 {[%clk 0:02:38.6]} 54... Nc4 {[%clk 0:02:57.7]} 55.
Re1 {[%clk 0:02:36.5]} 55... c2 {[%clk 0:02:55.4]} 56. Rc1 {[%clk 0:02:36]}
56... Kc3 {[%clk 0:02:54.5]} 57. Ke6 {[%clk 0:02:34.1]} 57... Rd1 {[%clk
0:02:53.6]} 58. Rxc2+ {[%clk 0:02:33]} 58... Kxc2 {[%clk 0:02:53.5]} 59. Kf5
{[%clk 0:02:31.7]} 59... Rd6 {[%clk 0:02:52.3]} 60. Ke4 {[%clk 0:02:31.3]} 60...
Kd2 {[%clk 0:02:51.3]} 61. Kf4 {[%clk 0:02:30.3]} 61... Ke2 {[%clk 0:02:50.6]}
62. Kf5 {[%clk 0:02:30.2]} 0-1

[Event "Live Chess"]
[Site "Chess.com"]
[Date "2023.05.21"]
[Round "-"]
[White "Rusty_Bridges"]
[Black "luckywookie"]
[Result "1-0"]
[WhiteElo "1507"]
[BlackElo "811"]
[TimeControl "300"]
[EndTime "8:05:18 PDT"]
[Termination "Rusty_Bridges won by checkmate"]

1. e4 {[%clk 0:04:58.5]} 1... c6 {[%clk 0:04:58.3]} 2. d4 {[%clk 0:04:56.4]}
2... d5 {[%clk 0:04:57.5]} 3. exd5 {[%clk 0:04:55.2]} 3... cxd5 {[%clk
0:04:55.5]} 4. Nf3 {[%clk 0:04:54.4]} 4... Nc6 {[%clk 0:04:54.2]} 5. c3 {[%clk
0:04:52.3]} 5... Bg4 {[%clk 0:04:48.8]} 6. Bb5 {[%clk 0:04:50.1]} 6... e6 {[%clk
0:04:44.5]} 7. h3 {[%clk 0:04:48.3]} 7... Bxf3 {[%clk 0:04:43]} 8. Qxf3 {[%clk
0:04:46.4]} 8... Nf6 {[%clk 0:04:38.7]} 9. Bg5 {[%clk 0:04:42.8]} 9... Be7
{[%clk 0:04:37.1]} 10. Nd2 {[%clk 0:04:39.7]} 10... a6 {[%clk 0:04:31.4]} 11.
Bd3 {[%clk 0:04:37.9]} 11... h6 {[%clk 0:04:19.3]} 12. Bh4 {[%clk 0:04:35.2]}
12... g5 {[%clk 0:04:16.6]} 13. Bg3 {[%clk 0:04:33.3]} 13... Bd6 {[%clk
0:04:00.9]} 14. h4 {[%clk 0:04:27.4]} 14... Bxg3 {[%clk 0:03:53.2]} 15. Qxg3
{[%clk 0:04:24.1]} 15... Qe7 {[%clk 0:03:40.7]} 16. Nf3 {[%clk 0:04:15.8]} 16...
O-O-O {[%clk 0:03:35.4]} 17. Ne5 {[%clk 0:04:11.7]} 17... Nxe5 {[%clk 0:03:33]}
18. Qxe5 {[%clk 0:04:10.1]} 18... Ng4 {[%clk 0:03:26.3]} 19. Qg3 {[%clk
0:04:04.4]} 19... Nf6 {[%clk 0:03:16.7]} 20. hxg5 {[%clk 0:04:01]} 20... Ne4
{[%clk 0:03:13.1]} 21. Bxe4 {[%clk 0:03:55.7]} 21... dxe4 {[%clk 0:03:11.3]} 22.
Rxh6 {[%clk 0:03:50]} 22... Rxh6 {[%clk 0:02:59.6]} 23. gxh6 {[%clk 0:03:48.4]}
23... Rh8 {[%clk 0:02:57.9]} 24. Qe3 {[%clk 0:03:45.7]} 24... Qh4 {[%clk
0:02:53]} 25. O-O-O {[%clk 0:03:28.8]} 25... Rxh6 {[%clk 0:02:45]} 26. g3 {[%clk
0:03:21.3]} 26... Qg4 {[%clk 0:02:35]} 27. Qxh6 {[%clk 0:03:17.2]} 27... Qf3
{[%clk 0:02:25.6]} 28. Qe3 {[%clk 0:03:05.8]} 28... f5 {[%clk 0:02:22.7]} 29.
Qxf3 {[%clk 0:03:03.9]} 29... exf3 {[%clk 0:02:21.1]} 30. d5 {[%clk 0:02:59]}
30... e5 {[%clk 0:02:18.6]} 31. Kd2 {[%clk 0:02:53.5]} 31... Kd7 {[%clk
0:02:13.9]} 32. Ke3 {[%clk 0:02:51.9]} 32... Kd6 {[%clk 0:02:09.1]} 33. c4
{[%clk 0:02:49.7]} 33... b6 {[%clk 0:02:06.5]} 34. Kxf3 {[%clk 0:02:44]} 34...
Kc5 {[%clk 0:02:01.9]} 35. b3 {[%clk 0:02:42.7]} 35... e4+ {[%clk 0:01:59.7]}
36. Kf4 {[%clk 0:02:41.1]} 36... Kb4 {[%clk 0:01:51.5]} 37. Kxf5 {[%clk
0:02:38.5]} 37... Kc3 {[%clk 0:01:50.5]} 38. Kxe4 {[%clk 0:02:35.9]} 38... Kb2
{[%clk 0:01:49.5]} 39. Rd3 {[%clk 0:02:33.1]} 39... Kxa2 {[%clk 0:01:48]} 40. d6
{[%clk 0:02:32.1]} 40... Kb2 {[%clk 0:01:46.6]} 41. d7 {[%clk 0:02:31.2]} 41...
b5 {[%clk 0:01:45.7]} 42. d8=Q {[%clk 0:02:29.1]} 42... bxc4 {[%clk 0:01:43.9]}
43. bxc4 {[%clk 0:02:27.7]} 43... a5 {[%clk 0:01:42.5]} 44. Qxa5 {[%clk
0:02:25.5]} 44... Kb1 {[%clk 0:01:40.5]} 45. Qd2 {[%clk 0:02:20.2]} 45... Ka1
{[%clk 0:01:37.9]} 46. Re3 {[%clk 0:02:20.1]} 46... Kb1 {[%clk 0:01:36]} 47.
Re1# {[%clk 0:02:20]} 1-0

[Event "Live Chess"]
[Site "Chess.com"]
[Date "2023.05.21"]
[Round "-"]
[White "Crowded_House"]
[Black "ShanthamGrarks"]
[Result "0-1"]
[WhiteElo "1609"]
[BlackElo "1955"]
[TimeControl "300"]
[EndTime "8:05:25 PDT"]
[Termination "ShanthamGrarks won by resignation"]

1. d4 {[%clk 0:04:55.4]} 1... e6 {[%clk 0:04:58.3]} 2. Nf3 {[%clk 0:04:51.8]}
2... f5 {[%clk 0:04:57.6]} 3. Bg5 {[%clk 0:04:49.9]} 3... Be7 {[%clk 0:04:55.3]}
4. Bxe7 {[%clk 0:04:48.3]} 4... Qxe7 {[%clk 0:04:54.9]} 5. Ne5 {[%clk
0:04:47.5]} 5... Nf6 {[%clk 0:04:53.6]} 6. e3 {[%clk 0:04:38.4]} 6... d6 {[%clk
0:04:52.2]} 7. Nf3 {[%clk 0:04:35.5]} 7... O-O {[%clk 0:04:50.2]} 8. Bd3 {[%clk
0:04:28.4]} 8... e5 {[%clk 0:04:48.7]} 9. dxe5 {[%clk 0:04:26.3]} 9... dxe5
{[%clk 0:04:46.9]} 10. Bc4+ {[%clk 0:04:24.8]} 10... Kh8 {[%clk 0:04:44.9]} 11.
O-O {[%clk 0:04:22.8]} 11... Nc6 {[%clk 0:04:41.5]} 12. Nc3 {[%clk 0:04:14.2]}
12... Be6 {[%clk 0:04:39.2]} 13. Bxe6 {[%clk 0:04:12.5]} 13... Qxe6 {[%clk
0:04:38.8]} 14. Ng5 {[%clk 0:04:11]} 14... Qe7 {[%clk 0:04:35.9]} 15. Nf3 {[%clk
0:04:06.2]} 15... Rad8 {[%clk 0:04:32.9]} 16. Qe2 {[%clk 0:04:02.9]} 16... e4
{[%clk 0:04:30]} 17. Nd2 {[%clk 0:03:57.4]} 17... Ng4 {[%clk 0:04:27.7]} 18. h3
{[%clk 0:03:54.4]} 18... Nge5 {[%clk 0:04:25.3]} 19. Nb3 {[%clk 0:03:51.7]}
19... Qg5 {[%clk 0:04:22.7]} 20. Kh1 {[%clk 0:03:37.5]} 20... Rf6 {[%clk
0:04:18.3]} 21. Rad1 {[%clk 0:03:33.1]} 21... Rdf8 {[%clk 0:04:14.5]} 22. f4
{[%clk 0:03:23.4]} 22... exf3 {[%clk 0:04:12.9]} 23. gxf3 {[%clk 0:03:20]} 23...
Rh6 {[%clk 0:04:09.8]} 24. Qg2 {[%clk 0:03:03.3]} 24... Qxe3 {[%clk 0:04:05.6]}
25. Rde1 {[%clk 0:02:48.2]} 25... Qf4 {[%clk 0:04:03.4]} 26. Ne2 {[%clk
0:02:42]} 26... Qh4 {[%clk 0:03:59.9]} 27. Ng1 {[%clk 0:02:36.6]} 27... Ng6
{[%clk 0:03:43.1]} 28. Kh2 {[%clk 0:02:19]} 28... Nf4 {[%clk 0:03:36.8]} 29. Qg3
{[%clk 0:02:14.3]} 29... Qxg3+ {[%clk 0:03:28.9]} 30. Kxg3 {[%clk 0:02:13]}
30... Ng6 {[%clk 0:03:20.8]} 31. Re2 {[%clk 0:02:03.2]} 31... Rh5 {[%clk
0:03:18.5]} 32. Rfe1 {[%clk 0:02:01.5]} 32... Rg5+ {[%clk 0:03:16]} 33. Kh2
{[%clk 0:02:00]} 33... Nh4 {[%clk 0:03:09.3]} 34. Rf1 {[%clk 0:01:48]} 34... b6
{[%clk 0:02:55]} 35. f4 {[%clk 0:01:47.3]} 35... Rg6 {[%clk 0:02:51.4]} 36. Nf3
{[%clk 0:01:46.4]} 36... Nxf3+ {[%clk 0:02:48.1]} 37. Rxf3 {[%clk 0:01:45.5]}
37... h6 {[%clk 0:02:42.9]} 38. Rfe3 {[%clk 0:01:44.3]} 38... Rd6 {[%clk
0:02:35]} 39. Re8 {[%clk 0:01:41.5]} 39... Rxe8 {[%clk 0:02:32.6]} 40. Rxe8+
{[%clk 0:01:40.4]} 40... Kh7 {[%clk 0:02:32.5]} 41. Re2 {[%clk 0:01:39.5]} 41...
Nd4 {[%clk 0:02:24.8]} 42. Nxd4 {[%clk 0:01:37.2]} 42... Rxd4 {[%clk 0:02:22.6]}
43. Kg2 {[%clk 0:01:33.7]} 43... Kg6 {[%clk 0:02:18]} 44. Kf3 {[%clk 0:01:29.1]}
44... Kh5 {[%clk 0:02:14.7]} 45. c3 {[%clk 0:01:28.1]} 45... Rd3+ {[%clk
0:02:12.4]} 46. Re3 {[%clk 0:01:21.4]} 46... Rxe3+ {[%clk 0:02:10.2]} 47. Kxe3
{[%clk 0:01:20.9]} 47... Kh4 {[%clk 0:02:09.7]} 48. b4 {[%clk 0:01:19]} 48...
Kxh3 {[%clk 0:02:08.9]} 49. c4 {[%clk 0:01:18.4]} 49... Kg4 {[%clk 0:02:07.5]}
50. a4 {[%clk 0:01:17.7]} 50... a5 {[%clk 0:02:03.4]} 51. bxa5 {[%clk
0:01:13.1]} 51... bxa5 {[%clk 0:02:02]} 52. c5 {[%clk 0:01:12.4]} 52... c6
{[%clk 0:01:59.7]} 53. Kd4 {[%clk 0:01:09.4]} 53... Kxf4 {[%clk 0:01:59.1]} 54.
Kc4 {[%clk 0:01:06.5]} 54... Ke4 {[%clk 0:01:57.7]} 0-1